bitfinex/quotes_BTCUSD_20240810
["timestamp","ask_amount","ask_price","bid_price","bid_amount"]
[1723315105256,0.001,61122.0,61121.0,0.219804]
[1723315105450,0.001,61122.0,61121.0,0.82563692]
[1723315105730,0.001,61122.0,61121.0,0.98924592]
[1723315106933,0.002,61122.0,61121.0,0.99524592]
[1723315107286,0.001,61122.0,61121.0,0.98924592]
[1723315107513,0.002,61122.0,61121.0,0.99524592]
[1723315107818,0.002,61122.0,61121.0,1.16685492]
[1723315108418,0.002,61122.0,61121.0,1.15885492]
[1723315108688,0.002,61122.0,61121.0,1.16685492]
[1723315109301,0.002,61122.0,61121.0,1.33046392]
[1723315109501,0.00832,61124.0,61121.0,1.33046392]
[1723315109502,0.00832,61124.0,61123.0,0.989018]
[1723315109904,0.0001,61129.0,61128.0,0.845368]
[1723315110098,0.0001,61129.0,61128.0,1.17277392]
[1723315110358,0.0001,61129.0,61128.0,1.30862567]
[1723315110526,0.0001,61129.0,61128.0,1.17277392]
[1723315110730,0.00832,61133.0,61132.0,1.00891]
[1723315110933,0.00832,61146.0,61138.0,0.255346]
[1723315111107,0.00832,61146.0,61138.0,1.02682492]
[1723315111331,0.00832,61146.0,61138.0,1.35395292]
[1723315111567,0.00832,61146.0,61138.0,1.42013154]
[1723315111907,0.00832,61146.0,61138.0,1.40013154]
[1723315112137,0.00832,61146.0,61138.0,1.42013154]
[1723315112713,0.08184646,61145.0,61138.0,1.11796754]
[1723315112958,0.08184646,61145.0,61138.0,0.907974]
[1723315113167,0.08184646,61145.0,61138.0,0.61001]
[1723315113526,0.08184646,61145.0,61138.0,0.446446]
[1723315113748,0.13992,61139.0,61138.0,0.012]
[1723315113951,0.13992,61139.0,61138.0,0.103782]
[1723315113952,0.02452715,61139.0,61138.0,0.103782]
[1723315114149,0.02352715,61139.0,61138.0,0.255346]
[1723315114391,0.02452715,61139.0,61138.0,0.261346]
[1723315114565,0.02452715,61139.0,61138.0,0.09105289]
[1723315114746,0.02352715,61139.0,61138.0,0.09205289]
[1723315115198,0.02352715,61139.0,61138.0,0.25561689]
[1723315115434,0.02352715,61139.0,61138.0,0.088782]
[1723315115616,0.02352715,61139.0,61138.0,0.252346]
[1723315116161,0.02352715,61139.0,61138.0,0.245346]
[1723315116313,0.02352715,61139.0,61138.0,0.088782]
[1723315116525,0.02352715,61139.0,61138.0,0.013]
[1723315116526,0.02452715,61139.0,61138.0,0.013]
[1723315117647,0.02452715,61139.0,61138.0,0.258346]
[1723315117822,0.02452715,61139.0,61138.0,0.094782]
[1723315118026,0.02452715,61139.0,61138.0,0.013]
[1723315118822,0.25562715,61139.0,61138.0,0.013]
[1723315119606,0.50096815,61139.0,61138.0,0.013]
[1723315119880,0.66452915,61139.0,61138.0,0.013]
[1723315120118,0.08179,61132.0,61127.0,0.081796]
[1723315120304,0.08179,61132.0,61125.0,0.081798]
[1723315120305,0.16364046,61130.0,61125.0,0.081798]
[1723315120514,0.16364046,61130.0,61122.0,0.364706]
[1723315120515,0.163594,61127.0,61117.0,0.163619]
[1723315120718,0.01496567,61129.0,61117.0,0.16381492]
[1723315120913,0.01512995,61126.0,61125.0,0.081799]
[1723315121273,0.08184646,61130.0,61125.0,0.163599]
[1723315121479,0.01509391,61126.0,61125.0,0.250398]
[1723315121822,0.16363946,61130.0,61126.0,0.00020914]
[1723315122198,0.081794,61129.0,61126.0,0.00020914]
[1723315122581,0.083794,61129.0,61126.0,0.00020914]
[1723315122784,0.002,61129.0,61126.0,0.00020914]
[1723315123165,0.16363946,61130.0,61126.0,0.00020914]
[1723315123384,0.002,61129.0,61126.0,0.08200714]
[1723315123591,0.005,61129.0,61126.0,0.08200714]
[1723315124170,0.003,61129.0,61126.0,0.08200714]
[1723315126290,0.005,61129.0,61126.0,0.08200714]
[1723315126720,0.005,61129.0,61127.0,0.081796]
[1723315127078,0.005,61129.0,61128.0,0.081795]
[1723315127871,0.002,61129.0,61128.0,0.081795]
[1723315128087,0.002,61129.0,61126.0,0.08527769]
[1723315128088,0.01711573,61129.0,61126.0,0.08527769]
[1723315128336,0.182291,61131.0,61126.0,0.08527769]
[1723315128672,0.01510973,61128.0,61127.0,0.081796]
[1723315128975,0.002,61129.0,61127.0,0.081796]
[1723315129088,0.01495305,61128.0,61127.0,0.081796]
[1723315129500,0.01495305,61128.0,61127.0,0.882275]
[1723315129741,0.002,61128.0,61127.0,1.15255232]
[1723315129921,0.002,61128.0,61127.0,1.32636724]
[1723315130320,0.003,61128.0,61127.0,1.32636724]
[1723315130695,0.001,61128.0,61127.0,1.32636026]
[1723315130841,0.002,61128.0,61127.0,1.33236026]
[1723315131453,0.00832,61141.0,61138.0,0.66061]
[1723315131652,0.00832,61141.0,61138.0,1.32495926]
[1723315133032,0.00832,61141.0,61138.0,1.33095926]
[1723315133033,0.00932,61139.0,61138.0,1.33095926]
[1723315134046,0.01032,61139.0,61138.0,1.33695926]
[1723315134642,0.00932,61139.0,61138.0,1.33093289]
[1723315134872,0.00932,61139.0,61138.0,1.33793289]
[1723315135346,0.00832,61139.0,61138.0,1.32493607]
[1723315135553,0.00832,61139.0,61138.0,1.33093607]
[1723315135763,0.00832,61139.0,61138.0,1.33893607]
[1723315135962,0.00832,61139.0,61138.0,1.33293607]
[1723315136160,0.00832,61139.0,61138.0,1.33893607]
[1723315136364,0.00832,61139.0,61138.0,1.33093607]
[1723315137566,0.00832,61139.0,61138.0,1.35092886]
[1723315137764,0.00832,61139.0,61138.0,1.35892886]
[1723315138241,0.00832,61139.0,61138.0,1.34492886]
[1723315138446,0.00832,61139.0,61138.0,1.35592886]
[1723315138649,0.00832,61139.0,61138.0,1.36392886]
[1723315138906,0.00832,61139.0,61138.0,1.35592886]
[1723315139378,0.00832,61139.0,61138.0,1.36592886]
[1723315140005,0.00832,61139.0,61138.0,1.34592886]
[1723315140218,0.00832,61139.0,61138.0,1.36592886]
[1723315140830,0.00832,61139.0,61138.0,1.36592602]
[1723315141834,0.00832,61139.0,61138.0,1.34592602]
[1723315142945,0.00832,61139.0,61138.0,1.36592602]
[1723315143724,0.00832,61139.0,61138.0,1.34592602]
[1723315144099,0.00832,61139.0,61138.0,1.36592602]
[1723315144280,0.00832,61139.0,61138.0,1.36593218]
[1723315144826,0.00832,61139.0,61138.0,1.34593218]
[1723315145447,0.00832,61139.0,61138.0,1.36593218]
[1723315147034,0.00832,61139.0,61138.0,1.36592705]
[1723315147239,0.00832,61146.0,61145.0,0.01]
[1723315147433,0.00832,61146.0,61145.0,1.00102761]
[1723315147796,0.00832,61146.0,61145.0,1.32811761]
[1723315148176,0.00832,61163.0,61149.0,0.193534]
[1723315148378,0.00832,61163.0,61162.0,0.24525]
[1723315148717,0.00832,61163.0,61162.0,0.40875]
[1723315149245,0.00832,61163.0,61162.0,0.24525]
[1723315149488,0.00832,61163.0,61162.0,0.40875]
[1723315149686,0.00832,61163.0,61162.0,0.24525]
[1723315150424,0.00832,61163.0,61162.0,0.40875]
[1723315151282,0.00832,61163.0,61162.0,0.40975]
[1723315151686,0.01032,61163.0,61162.0,0.41075]
[1723315151881,0.01032,61163.0,61162.0,0.71176492]
[1723315152099,0.01032,61163.0,61162.0,0.87526492]
[1723315152340,0.01032,61163.0,61162.0,0.71176492]
[1723315153324,0.00832,61163.0,61162.0,0.70976492]
[1723315154813,0.01032,61163.0,61162.0,0.70976492]
[1723315155533,0.01032,61163.0,61162.0,0.87326492]
[1723315155740,0.01032,61163.0,61162.0,0.97746492]
[1723315155943,0.01032,61163.0,61162.0,0.81396492]
[1723315156860,0.01032,61163.0,61162.0,0.70976492]
[1723315158361,0.01032,61163.0,61162.0,1.12325946]
[1723315158859,0.01032,61163.0,61162.0,1.14325946]
[1723315159259,0.01032,61163.0,61162.0,1.12325946]
[1723315159721,0.01032,61163.0,61162.0,0.98746492]
[1723315160073,0.00832,61163.0,61162.0,1.00046492]
[1723315160506,0.00832,61163.0,61162.0,0.98746492]
[1723315160712,0.00832,61163.0,61162.0,0.99546492]
[1723315160914,0.00832,61163.0,61162.0,1.13125901]
[1723315161481,0.00832,61163.0,61162.0,1.14325901]
[1723315162000,0.00832,61163.0,61162.0,1.12325901]
[1723315162202,0.00832,61163.0,61162.0,1.13925901]
[1723315165550,0.00832,61163.0,61162.0,1.03505901]
[1723315165991,0.00832,61163.0,61162.0,0.88785901]
[1723315166193,0.00832,61163.0,61162.0,0.75206492]
[1723315166346,0.01862948,61163.0,61162.0,1.02365278]
[1723315166547,0.00832,61163.0,61162.0,1.02365278]
[1723315166888,0.00832,61163.0,61162.0,1.02365112]
[1723315167028,0.00832,61163.0,61162.0,0.8598362]
[1723315167228,0.01677206,61163.0,61162.0,0.7240396]
[1723315167654,0.01677206,61163.0,61162.0,0.85984127]
[1723315167852,0.01677206,61163.0,61162.0,0.85884127]
[1723315168852,0.01677206,61163.0,61162.0,0.7230396]
[1723315169288,0.01677206,61163.0,61162.0,0.5580396]
[1723315171620,0.11867206,61163.0,61162.0,0.23105273]
[1723315171824,0.11867206,61163.0,61162.0,0.016]
[1723315171825,0.33682006,61163.0,61162.0,0.016]
[1723315172029,0.50031706,61163.0,61162.0,0.016]
[1723315172231,0.33682006,61163.0,61162.0,0.016]
[1723315172518,0.2383,61161.0,61156.0,0.163514]
[1723315172886,0.0080417,61160.0,61156.0,0.163514]
[1723315173083,0.0080417,61160.0,61150.0,0.0009141]
[1723315173084,0.0080417,61160.0,61159.0,0.081754]
[1723315173298,0.0080417,61160.0,61159.0,0.245262]
[1723315173480,0.0080417,61160.0,61159.0,0.081754]
[1723315173738,0.2383,61161.0,61157.0,0.163512]
[1723315173739,0.2383,61161.0,61160.0,0.081752]
[1723315173888,0.2383,61159.0,61157.0,0.163512]
[1723315174280,0.2383,61159.0,61158.0,0.081755]
[1723315175092,0.2383,61160.0,61156.0,0.001]
[1723315175407,0.00832,61163.0,61158.0,0.001]
[1723315175408,0.004,61159.0,61158.0,0.001]
[1723315175733,0.2423,61159.0,61158.0,0.001]
[1723315176876,0.2443,61159.0,61158.0,0.002]
[1723315177074,0.326054,61159.0,61158.0,0.002]
[1723315177291,0.2443,61159.0,61158.0,0.002]
[1723315178046,0.2443,61159.0,61158.0,0.083755]
[1723315179172,0.2443,61159.0,61158.0,0.002]
[1723315179512,0.2443,61159.0,61158.0,0.083755]
[1723315181706,0.006,61159.0,61158.0,0.410775]
[1723315183146,0.004,61159.0,61158.0,0.409775]
[1723315183360,0.00380587,61159.0,61158.0,0.573285]
[1723315183814,0.11022,61163.0,61162.0,0.40875]
[1723315184216,0.00832,61163.0,61162.0,0.40875]
[1723315184596,0.01749486,61163.0,61162.0,0.40875]
[1723315185198,0.02049486,61163.0,61162.0,0.40975]
[1723315185361,0.02149486,61163.0,61162.0,0.40975]
[1723315185976,0.02049486,61163.0,61162.0,0.40975]
[1723315186334,0.02149486,61163.0,61162.0,0.40975]
[1723315187327,0.01849486,61163.0,61162.0,0.40875]
[1723315187726,0.01849486,61163.0,61162.0,0.57325]
[1723315187727,0.01949486,61163.0,61162.0,0.57325]
[1723315187977,0.01849486,61163.0,61162.0,0.84505488]
[1723315188131,0.01849486,61163.0,61162.0,0.70925]
[1723315188334,0.01949486,61163.0,61162.0,0.70925]
[1723315188534,0.00832,61163.0,61162.0,0.70925]
[1723315189091,0.00932,61163.0,61162.0,0.70925]
[1723315189217,0.00932,61163.0,61162.0,0.84505579]
[1723315190220,0.0001,61169.0,61168.0,1.013678]
[1723315190421,0.0001,61169.0,61168.0,1.51439871]
[1723315190625,0.0001,61169.0,61168.0,1.76658089]
[1723315190824,0.0001,61169.0,61168.0,1.76649052]
[1723315191283,0.0001,61169.0,61168.0,1.32087214]
[1723315191483,0.0041,61169.0,61168.0,1.21087214]
[1723315191723,0.0041,61169.0,61168.0,1.20987214]
[1723315191724,0.0011,61169.0,61168.0,1.20987214]
[1723315191895,0.0001,61169.0,61168.0,1.07287214]
[1723315192098,0.0001,61169.0,61168.0,1.09487214]
[1723315192306,0.0001,61169.0,61168.0,1.08287214]
[1723315192511,0.0001,61169.0,61168.0,1.09187214]
[1723315192662,0.0001,61169.0,61168.0,1.10487214]
[1723315192863,0.0001,61169.0,61168.0,1.24377214]
[1723315193286,0.0001,61169.0,61168.0,1.26377214]
[1723315194036,0.0001,61169.0,61168.0,1.25077214]
[1723315194178,0.0001,61169.0,61168.0,1.25977214]
[1723315194382,0.0001,61169.0,61168.0,1.25977984]
[1723315194628,0.0001,61169.0,61168.0,1.23977984]
[1723315194947,0.0001,61169.0,61168.0,1.25977984]
[1723315196148,0.0001,61169.0,61168.0,1.23977984]
[1723315196352,0.0001,61169.0,61168.0,1.25977984]
[1723315197365,0.0001,61169.0,61168.0,1.23977984]
[1723315197570,0.000931,61169.0,61168.0,1.23977984]
[1723315198434,0.000931,61169.0,61168.0,1.23978219]
[1723315198623,0.000931,61169.0,61168.0,1.25978219]
[1723315198823,0.000931,61169.0,61168.0,1.23978219]
[1723315199148,0.000931,61169.0,61168.0,1.25978219]
[1723315199321,0.000931,61169.0,61168.0,1.25978447]
[1723315199895,0.000931,61169.0,61168.0,1.23978447]
[1723315200137,0.000931,61169.0,61168.0,1.25978447]
[1723315200987,0.000931,61169.0,61168.0,1.25978237]
[1723315201520,0.000931,61169.0,61168.0,1.23978237]
[1723315201658,0.000931,61169.0,61168.0,1.25978237]
[1723315201863,0.000931,61169.0,61168.0,1.09088237]
[1723315202236,0.000931,61169.0,61168.0,0.56248345]
[1723315202587,0.000931,61169.0,61168.0,0.42671]
[1723315206769,0.000931,61169.0,61168.0,0.590194]
[1723315206966,0.000931,61169.0,61168.0,1.09400892]
[1723315207171,0.000931,61169.0,61168.0,1.2297932]
[1723315207392,0.000931,61169.0,61168.0,1.22978878]
[1723315207597,0.000931,61169.0,61168.0,1.22978846]
[1723315207930,0.000931,61169.0,61168.0,1.09400892]
[1723315208171,0.000931,61169.0,61168.0,1.23978786]
[1723315208573,0.000931,61169.0,61168.0,1.40327186]
[1723315209404,0.000931,61169.0,61168.0,1.26749292]
[1723315209578,0.000931,61169.0,61168.0,1.40326487]
[1723315210291,0.000931,61169.0,61168.0,1.42326487]
[1723315210987,0.000931,61169.0,61168.0,1.48266448]
[1723315211391,0.000931,61169.0,61168.0,1.53946244]
[1723315211567,0.000931,61169.0,61168.0,1.55946244]
[1723315211774,0.000931,61169.0,61168.0,1.55944335]
[1723315211977,0.000931,61169.0,61168.0,1.35834335]
[1723315212172,0.000931,61169.0,61168.0,1.50522182]
[1723315212386,0.000931,61169.0,61168.0,1.30156448]
[1723315212640,0.000931,61169.0,61168.0,1.56200055]
[1723315212842,0.000931,61169.0,61168.0,1.30156448]
[1723315213043,0.000931,61169.0,61168.0,1.50522182]
[1723315213352,0.000931,61169.0,61168.0,1.30156448]
[1723315213543,0.000931,61169.0,61168.0,1.50520005]
[1723315213700,0.000931,61169.0,61168.0,1.35834978]
[1723315213903,0.000931,61169.0,61168.0,1.30155577]
[1723315214405,0.000931,61169.0,61168.0,1.30156065]
[1723315215228,0.000931,61169.0,61168.0,1.56200574]
[1723315215410,0.000931,61169.0,61168.0,1.35835415]
[1723315215633,0.000931,61169.0,61168.0,1.56200574]
[1723315215841,0.000931,61169.0,61168.0,1.35835415]
[1723315216042,0.000931,61169.0,61168.0,1.56200574]
[1723315216795,0.000931,61169.0,61168.0,1.50521224]
[1723315216965,0.000931,61169.0,61168.0,1.34172824]
[1723315217169,0.000931,61169.0,61168.0,1.39852324]
[1723315217579,0.000931,61169.0,61168.0,1.34172824]
[1723315218091,0.000931,61169.0,61168.0,1.34172852]
[1723315218322,0.000931,61169.0,61168.0,1.02867676]
[1723315218434,0.000931,61169.0,61168.0,0.88978416]
[1723315220337,0.000931,61169.0,61168.0,0.72630016]
[1723315221190,0.000931,61169.0,61168.0,0.8897896]
[1723315223338,0.000931,61169.0,61168.0,0.7263056]
[1723315223745,0.000931,61169.0,61168.0,0.8897896]
[1723315224902,0.000931,61169.0,61168.0,1.15021228]
[1723315225107,0.000931,61169.0,61168.0,1.15019689]
[1723315228577,0.000931,61169.0,61168.0,0.75400892]
[1723315228791,0.000931,61169.0,61168.0,1.15019497]
[1723315228990,0.000931,61169.0,61168.0,0.75400892]
[1723315229152,0.000931,61169.0,61168.0,1.15019497]
[1723315230358,0.000931,61169.0,61168.0,1.15019175]
[1723315232171,0.000931,61169.0,61168.0,1.15018808]
[1723315233452,0.000931,61169.0,61168.0,1.19870139]
[1723315233869,0.000931,61169.0,61168.0,1.20870139]
[1723315234069,0.000931,61169.0,61168.0,1.15195191]
[1723315234226,0.000931,61169.0,61168.0,1.1034386]
[1723315235051,0.000931,61169.0,61168.0,1.35230856]
[1723315235257,0.000931,61169.0,61168.0,1.46924645]
[1723315235739,0.000931,61169.0,61168.0,1.46921321]
[1723315235914,0.000931,61169.0,61168.0,1.59049181]
[1723315236321,0.000931,61169.0,61168.0,1.37228949]
[1723315237428,0.000931,61169.0,61168.0,1.39653704]
[1723315237979,0.000931,61169.0,61168.0,1.37658751]
[1723315238251,0.000931,61169.0,61168.0,1.27951174]
[1723315238427,0.000931,61169.0,61168.0,1.37658751]
[1723315238629,0.000931,61169.0,61168.0,1.39658751]
[1723315239278,0.000931,61169.0,61168.0,0.86100892]
[1723315239435,0.000931,61169.0,61168.0,1.29324504]
[1723315239643,0.000931,61169.0,61168.0,0.95381854]
[1723315239842,0.000931,61169.0,61168.0,1.27325199]
[1723315240043,0.000931,61169.0,61168.0,1.2732502]
[1723315240454,0.000931,61169.0,61168.0,1.31951519]
[1723315240656,0.000931,61169.0,61168.0,1.22243942]
[1723315240880,0.000931,61169.0,61168.0,1.31751519]
[1723315241117,0.000931,61169.0,61168.0,1.29751519]
[1723315241319,0.000931,61169.0,61168.0,1.29325116]
[1723315241448,0.000931,61169.0,61168.0,1.31751519]
[1723315241647,0.000931,61169.0,61168.0,1.37781519]
[1723315241890,0.000931,61169.0,61168.0,1.37355144]
[1723315242292,0.000931,61169.0,61168.0,1.11552713]
[1723315242518,0.000931,61169.0,61168.0,0.80659712]
[1723315244731,0.000931,61169.0,61168.0,1.31944184]
[1723315244858,0.000931,61169.0,61168.0,1.37765042]
[1723315245369,0.000931,61169.0,61168.0,1.47474575]
[1723315245801,0.000931,61169.0,61168.0,1.45474575]
[1723315246246,0.000931,61169.0,61168.0,1.4547245]
[1723315246408,0.000931,61169.0,61168.0,1.4747245]
[1723315246611,0.000931,61169.0,61168.0,1.4547245]
[1723315247256,0.000931,61169.0,61168.0,1.4747245]
[1723315247470,0.000931,61169.0,61168.0,1.52733797]
[1723315247656,0.000931,61169.0,61168.0,1.45467992]
[1723315247856,0.000931,61169.0,61168.0,1.57497992]
[1723315248215,0.000931,61169.0,61168.0,1.74468619]
[1723315248630,0.000931,61169.0,61168.0,1.76900474]
[1723315248844,0.00831,61184.0,61183.0,0.50361]
[1723315249100,0.00831,61184.0,61183.0,0.81319302]
[1723315249303,0.00831,61184.0,61183.0,0.97663702]
[1723315249517,0.00831,61184.0,61183.0,0.84086892]
[1723315249668,0.00831,61184.0,61183.0,0.70817515]
[1723315249869,0.08641,61184.0,61183.0,0.70817515]
[1723315250188,0.08641,61184.0,61183.0,0.54436216]
[1723315250392,0.08641,61184.0,61183.0,0.38091816]
[1723315251127,0.08641,61184.0,61183.0,0.55336216]
[1723315251333,0.08641,61184.0,61183.0,0.54936216]
[1723315251539,0.08641,61184.0,61183.0,0.5443707]
[1723315251659,0.08641,61184.0,61183.0,0.5453707]
[1723315251859,0.08641,61184.0,61183.0,0.5463707]
[1723315252305,0.08641,61184.0,61183.0,0.5473707]
[1723315253079,0.08641,61184.0,61183.0,0.54736863]
[1723315254589,0.07691,61184.0,61183.0,0.54736863]
[1723315256106,0.07691,61184.0,61183.0,0.71081263]
[1723315256342,0.07691,61184.0,61183.0,0.54736863]
[1723315256506,0.07691,61184.0,61183.0,0.54736411]
[1723315257432,0.17431,61184.0,61183.0,0.54736411]
[1723315260031,0.18810005,61184.0,61183.0,0.41161]
[1723315260259,0.18810005,61184.0,61183.0,0.38392208]
[1723315260638,0.18810005,61184.0,61183.0,0.54737355]
[1723315260836,0.18810005,61184.0,61183.0,0.54737243]
[1723315261259,0.18810005,61184.0,61183.0,0.54537243]
[1723315261456,0.08725253,61184.0,61183.0,0.54436772]
[1723315262056,0.09070885,61184.0,61183.0,0.54436772]
[1723315262426,0.09070886,61184.0,61183.0,0.54436772]
[1723315262792,0.07691,61184.0,61183.0,0.54436222]
[1723315263140,0.07691,61184.0,61183.0,0.70780622]
[1723315264299,0.00831,61184.0,61183.0,0.70780622]
[1723315264636,0.00831,61184.0,61183.0,0.96162114]
[1723315264842,0.00831,61184.0,61183.0,1.03052114]
[1723315265032,0.00831,61184.0,61183.0,1.04052114]
[1723315265608,0.00831,61184.0,61183.0,0.96162114]
[1723315265809,0.00831,61184.0,61183.0,0.97162114]
[1723315266017,0.00831,61184.0,61183.0,0.97562114]
[1723315266230,0.00831,61184.0,61183.0,1.13906514]
[1723315266442,0.00831,61184.0,61183.0,1.20796514]
[1723315266797,0.00831,61184.0,61183.0,1.19896514]
[1723315267181,0.00831,61184.0,61183.0,1.04450775]
[1723315267403,0.00831,61184.0,61183.0,0.97360775]
[1723315267603,0.00831,61184.0,61183.0,0.96960775]
[1723315268040,0.00831,61184.0,61183.0,0.97660775]
[1723315269223,0.00831,61184.0,61183.0,0.98660775]
[1723315269847,0.00831,61184.0,61183.0,0.93106892]
[1723315270068,0.00831,61184.0,61183.0,1.32707525]
[1723315270231,0.00831,61184.0,61183.0,1.06680859]
[1723315270438,0.00831,61184.0,61183.0,1.06680687]
[1723315271065,0.00831,61184.0,61183.0,1.32706909]
[1723315271273,0.00831,61184.0,61183.0,1.31885457]
[1723315271606,0.00831,61184.0,61183.0,1.48229857]
[1723315272213,0.00831,61184.0,61183.0,1.31885457]
[1723315272515,0.00831,61184.0,61183.0,1.27041512]
[1723315273212,0.00831,61184.0,61183.0,1.32705761]
[1723315273415,0.00831,61184.0,61183.0,1.32705624]
[1723315273758,0.00831,61184.0,61183.0,1.43384903]
[1723315274177,0.00831,61184.0,61183.0,1.27040503]
[1723315274584,0.00831,61184.0,61183.0,1.43384903]
[1723315275389,0.00831,61184.0,61183.0,1.27040503]
[1723315276264,0.00831,61184.0,61183.0,1.42384903]
[1723315276473,0.00831,61184.0,61183.0,1.43384903]
[1723315276786,0.00831,61184.0,61183.0,1.43384665]
[1723315281585,0.00831,61184.0,61183.0,1.09451292]
[1723315281739,0.00831,61184.0,61183.0,1.43384665]
[1723315284295,0.00831,61184.0,61183.0,1.43384585]
[1723315285821,0.00831,61184.0,61183.0,1.09451292]
[1723315286048,0.00831,61184.0,61183.0,1.43384585]
[1723315289206,0.00831,61184.0,61183.0,1.48225945]
[1723315289615,0.00831,61184.0,61183.0,1.48230727]
[1723315290034,0.00831,61184.0,61183.0,1.43384585]
[1723315290248,0.00831,61184.0,61183.0,1.48230685]
[1723315290674,0.00831,61184.0,61183.0,1.43384585]
[1723315291239,0.00831,61184.0,61183.0,1.09451292]
[1723315291438,0.00831,61184.0,61183.0,1.49646625]
[1723315291653,0.00831,61184.0,61183.0,1.4723217]
[1723315291777,0.00831,61184.0,61183.0,1.42384585]
[1723315292684,0.00831,61184.0,61183.0,1.39054411]
[1723315293104,0.00831,61184.0,61183.0,1.13024609]
[1723315293470,0.00831,61184.0,61183.0,1.33386511]
[1723315293675,0.00831,61184.0,61183.0,1.39056425]
[1723315294630,0.00831,61184.0,61183.0,1.39057313]
[1723315301264,0.00831,61184.0,61183.0,1.13025851]
[1723315303365,0.00831,61184.0,61183.0,1.39055781]
[1723315303572,0.00831,61184.0,61183.0,1.51019627]
[1723315304624,0.00831,61184.0,61183.0,1.50019627]
[1723315305191,0.00831,61184.0,61183.0,1.51017887]
[1723315305521,0.00831,61184.0,61183.0,1.42745948]
[1723315305926,0.00831,61184.0,61183.0,1.43745948]
[1723315306678,0.00831,61184.0,61183.0,1.53444353]
[1723315306976,0.00831,61184.0,61183.0,1.52444353]
[1723315308460,0.00831,61184.0,61183.0,1.42745948]
[1723315308658,0.00831,61184.0,61183.0,1.08811292]
[1723315308860,0.00831,61184.0,61183.0,1.42745055]
[1723315309262,0.00831,61184.0,61183.0,1.49805055]
[1723315311444,0.00831,61184.0,61183.0,1.61925565]
[1723315311855,0.00831,61184.0,61183.0,1.49805055]
[1723315312073,0.00831,61184.0,61183.0,1.61925565]
[1723315312299,0.00831,61184.0,61183.0,1.61925669]
[1723315313886,0.00831,61184.0,61183.0,1.61925668]
[1723315315391,0.00831,61184.0,61183.0,1.42745158]
[1723315315536,0.00831,61184.0,61183.0,1.52441577]
[1723315315741,0.00831,61184.0,61183.0,1.42745158]
[1723315316186,0.00831,61184.0,61183.0,1.33385158]
[1723315317461,0.00831,61184.0,61183.0,1.43082134]
[1723315317645,0.00831,61184.0,61183.0,1.33385158]
[1723315317771,0.00831,61184.0,61183.0,1.32638173]
[1723315317977,0.00831,61184.0,61183.0,1.39047294]
[1723315318182,0.00831,61184.0,61183.0,1.13024838]
[1723315318600,0.00831,61184.0,61183.0,1.39048405]
[1723315318874,0.00831,61184.0,61183.0,1.13024838]
[1723315319065,0.00831,61184.0,61183.0,1.4632133]
[1723315319607,0.00831,61184.0,61183.0,1.3830133]
[1723315319834,0.00831,61184.0,61183.0,1.4632133]
[1723315320441,0.00831,61184.0,61183.0,1.463213]
[1723315321255,0.00831,61184.0,61183.0,1.46322394]
[1723315321523,0.00831,61184.0,61183.0,0.72279609]
[1723315321524,0.10001,61184.0,61183.0,0.72279609]
[1723315321728,0.10001,61184.0,61183.0,0.667254]
[1723315321939,0.10001,61184.0,61183.0,0.80300838]
[1723315322076,0.11037272,61184.0,61183.0,0.80300838]
[1723315322285,0.10001,61184.0,61183.0,0.80300838]
[1723315322483,0.00831,61184.0,61183.0,0.80300838]
[1723315328535,0.00831,61184.0,61183.0,0.667254]
[1723315328736,0.00831,61184.0,61183.0,0.80299833]
[1723315329028,0.00831,61184.0,61183.0,1.13025725]
[1723315329162,0.00831,61184.0,61183.0,1.40660271]
[1723315329608,0.00831,61184.0,61183.0,1.33387286]
[1723315330013,0.00831,61184.0,61183.0,1.430846]
[1723315332037,0.00831,61184.0,61183.0,1.43082828]
[1723315332459,0.00831,61184.0,61183.0,1.51552828]
[1723315332887,0.00831,61184.0,61183.0,1.41855514]
[1723315333199,0.00831,61184.0,61183.0,1.48675514]
[1723315334221,0.00831,61184.0,61183.0,1.78145074]
[1723315334469,0.00831,61184.0,61183.0,1.61800674]
[1723315334631,0.00831,61184.0,61183.0,1.68641995]
[1723315335327,0.00831,61184.0,61183.0,1.67941995]
[1723315335529,0.00831,61184.0,61183.0,1.67941857]
[1723315335728,0.00831,61184.0,61183.0,1.68441857]
[1723315335950,0.00831,61184.0,61183.0,1.8278472]
[1723315336184,0.00831,61184.0,61183.0,1.6724032]
[1723315336532,0.00831,61184.0,61183.0,1.8278472]
[1723315336733,0.00831,61184.0,61183.0,1.5477585]
[1723315336940,0.00831,61184.0,61183.0,1.5487585]
[1723315337192,0.00831,61184.0,61183.0,1.5617585]
[1723315337865,0.00831,61184.0,61183.0,1.56176235]
[1723315338872,0.00831,61184.0,61183.0,1.56176768]
[1723315340076,0.00831,61184.0,61183.0,1.55176768]
[1723315340289,0.00831,61184.0,61183.0,1.56176768]
[1723315340494,0.00831,61184.0,61183.0,1.4405451]
[1723315340896,0.00831,61184.0,61183.0,1.56172526]
[1723315341096,0.00831,61184.0,61183.0,1.5375015]
[1723315341296,0.00831,61184.0,61183.0,1.56172526]
[1723315341517,0.00831,61184.0,61183.0,1.55172526]
[1723315342540,0.00831,61184.0,61183.0,1.222382]
[1723315344000,0.00831,61184.0,61183.0,1.12121292]
[1723315344220,0.00832,61201.0,61200.0,0.081699]
[1723315344373,0.00832,61201.0,61200.0,0.65250992]
[1723315344530,0.0168601,61201.0,61200.0,0.815491]
[1723315344734,0.17512,61201.0,61200.0,0.735291]
[1723315345000,0.17512,61201.0,61200.0,0.652093]
[1723315345199,0.18368065,61201.0,61200.0,0.78781412]
[1723315345772,0.18368065,61201.0,61200.0,0.655093]
[1723315345977,0.18368065,61201.0,61200.0,0.79081241]
[1723315346183,0.08282,61201.0,61200.0,0.79081241]
[1723315346383,0.08282,61201.0,61200.0,0.9542118]
[1723315346652,0.08282,61201.0,61200.0,0.9582118]
[1723315346832,0.08282,61201.0,61200.0,0.95821035]
[1723315347060,0.08282,61201.0,61200.0,0.95521035]
[1723315347201,0.08282,61201.0,61200.0,0.95520854]
[1723315347401,0.08282,61201.0,61200.0,0.95820854]
[1723315349773,0.08282,61201.0,61200.0,0.822491]